fUSD/lending_fUSD_20260408
["ID","MTS","AMOUNT","RATE_DAILY","PERIOD"]
[420071081,1775649047271,-6802.77,0.0002274,2]
[420071082,1775649047280,-500.0,0.00022822,2]
[420071083,1775649047290,-966.0,0.00022855,2]
[420071084,1775649047300,-229.0,0.00022855,2]
[420071085,1775649047309,-1715.0,0.00022855,2]
[420071086,1775649047318,-7641.0,0.00022855,2]
[420071087,1775649047327,-7017.0,0.00022855,2]
[420071088,1775649047337,-1904.0,0.00022855,2]
[420071089,1775649047347,-1372.0,0.00022855,2]
[420071090,1775649047356,-2739.0,0.00022855,2]
[420071091,1775649047365,-1472.81165667,0.00022919,2]
[420071092,1775649047375,-162.0,0.0002295,3]
[420071093,1775649047386,-300.0,0.00022999,2]
[420071094,1775649047395,-300.0,0.00022999,2]
[420071095,1775649047404,-300.0,0.00022999,2]
[420071096,1775649047413,-300.0,0.00022999,2]
[420071097,1775649047423,-300.0,0.00022999,2]
[420071098,1775649047434,-300.0,0.00022999,2]
[420071099,1775649047443,-300.0,0.00022999,2]
[420071100,1775649047452,-300.0,0.00022999,2]
[420071101,1775649047461,-300.0,0.00022999,2]
[420071102,1775649047469,-300.0,0.00022999,2]
[420071103,1775649047478,-310519.17101825,0.00023,2]
[420071104,1775649047488,-2355.78900167,0.00023,2]
[420071105,1775649047497,-160.0,0.00023,2]
[420071106,1775649047507,-500.0,0.00023,2]
[420071107,1775649047516,-167.03,0.00023,2]
[420071108,1775649047526,-716.0,0.00023,2]
[420071109,1775649047536,-1210.87,0.00023013,7]
[420071110,1775649047546,-218.69824164,0.00023014,2]
[420071111,1775649047555,-850.0,0.00023014,2]
[420071112,1775649047564,-1288.49995935,0.00023064,2]
[420071113,1775649047573,-602.35335626,0.0002314,2]
[420071114,1775649047582,-903.0,0.0002314,2]
[420071115,1775649047591,-1000.0,0.00023163,2]
[420071116,1775649047600,-1140.72191258,0.000232,2]
[420071117,1775649047609,-1573.0,0.0002327,3]
[420071118,1775649047619,-351.0,0.00023278,2]
[420071119,1775649047628,-256.38753708,0.00023313,2]
[420071120,1775649047638,-258.67007452,0.00023313,2]
[420071121,1775649047648,-481.98,0.00023313,2]
[420071122,1775649047657,-612.0,0.000234,2]
[420071123,1775649047667,-1000.0,0.000234,2]
[420071124,1775649047677,-627.0,0.000234,2]
[420071125,1775649047687,-878.0,0.000234,2]
[420071126,1775649047696,-619.3552,0.000235,2]
[420071127,1775649047706,-950.0,0.00023562,2]
[420071128,1775649047714,-150.0,0.00023616,2]
[420071129,1775649047724,-150.0,0.00023616,2]
[420071130,1775649047733,-150.0,0.00023616,2]
[420071131,1775649047743,-1116.0,0.00023672,2]
[420071132,1775649047753,-152.0,0.00023676,2]
[420071133,1775649047763,-301.85770587,0.00023676,2]
[420071134,1775649047772,-152.0,0.00023676,2]
[420071135,1775649047783,-1527.0,0.00023676,2]
[420071136,1775649047793,-1527.0,0.00023676,2]
[420071137,1775649047803,-1527.0,0.00023676,2]
[420071138,1775649047812,-1527.0,0.00023676,2]
[420071139,1775649047822,-152.0,0.00023676,2]
[420071140,1775649047832,-1527.0,0.00023676,2]
[420071141,1775649047841,-1527.0,0.00023676,2]
[420071142,1775649047850,-152.0,0.00023676,2]
[420071143,1775649047860,-1527.0,0.00023676,2]
[420071144,1775649047869,-1527.0,0.00023676,2]
[420071145,1775649047878,-152.0,0.00023676,2]
[420071146,1775649047888,-1527.0,0.00023676,2]
[420071147,1775649047897,-152.0,0.00023676,2]
[420071148,1775649047907,-1527.0,0.00023676,2]
[420071149,1775649047916,-152.0,0.00023676,2]
[420071150,1775649047926,-152.0,0.00023676,2]
[420071151,1775649047936,-1527.0,0.00023676,2]
[420071152,1775649047946,-2000.0,0.000238,2]
[420071153,1775649047955,-608.59766134,0.0002382,2]
[420071154,1775649047964,-370.12386351,0.00023825,4]
[420071155,1775649047973,-369.99709421,0.00023825,2]
[420071156,1775649047982,-5977.26960675,0.00023826,2]
[420071157,1775649047992,-966.0,0.00023855,2]
[420071158,1775649048001,-229.0,0.00023855,2]
[420071159,1775649048011,-1715.0,0.00023855,2]
[420071160,1775649048020,-7641.0,0.00023855,2]
[420071161,1775649048030,-7017.0,0.00023855,2]
[420071162,1775649048039,-1904.0,0.00023855,2]
[420071163,1775649048049,-1372.0,0.00023855,2]
[420071164,1775649048058,-2739.0,0.00023855,2]
[420071165,1775649048067,-1772.0,0.00023957,5]
[420071166,1775649048077,-550.0,0.00024,3]
[420071167,1775649048086,-1031.476193,0.00024,2]
[420071168,1775649048095,-3600.0,0.00024,2]
[420071169,1775649048105,-1247.10276105,0.00024,2]
[420071170,1775649048115,-160.0,0.00024,7]
[420071171,1775649048125,-526.0,0.00024,5]
[420071172,1775649048134,-716.0,0.00024,2]
[420071173,1775649048144,-621.78829552,0.0002402,2]
[420071174,1775649048154,-670.58624095,0.0002402,2]
[420071175,1775649048163,-1050.0,0.0002411,2]
[420071176,1775649048173,-2550.0,0.0002415,2]
[420071177,1775649048182,-1350.0,0.0002415,2]
[420071178,1775649048191,-1200.0,0.0002415,2]
[420071179,1775649048201,-1573.0,0.0002415,3]
[420071180,1775649048210,-1573.0,0.0002416,3]
[420071181,1775649048220,-3732.64595948,0.0002421,2]
[420071182,1775649048230,-321.0,0.0002421,10]
[420071183,1775649048240,-1347.0,0.00024387,2]
[420071184,1775649048251,-3524.0,0.00024387,2]
[420071185,1775649048260,-622.0,0.00024387,2]
[420071186,1775649048270,-1264.0,0.00024387,2]
[420071187,1775649048280,-3772.0,0.00024387,2]
[420071188,1775649048291,-415.0,0.00024387,2]
[420071189,1775649048300,-2443.24,0.00024513,2]
[420071190,1775649048310,-152.0,0.00024528,3]
[420071191,1775649048320,-1500.0,0.00024533,2]
[420071192,1775649048330,-169.84839244,0.0002465,2]
[420071193,1775649048340,-2000.0,0.00024658,7]
[420071194,1775649048350,-2000.0,0.00024658,7]
[420071195,1775649048360,-1044.73863019,0.00024658,2]
[420071196,1775649048369,-880.68,0.00024658,2]
[420071197,1775649048378,-1000.0,0.00024658,2]
[420071198,1775649048387,-180.18,0.00024658,30]
[420071199,1775649048396,-154.87,0.00024658,2]
[420071200,1775649048405,-7092.7,0.00024692,2]
[420071201,1775649048414,-967.68821068,0.00024855,2]
[420071202,1775649048423,-238.96581767,0.00024855,2]
[420071203,1775649048433,-1715.02553319,0.00024855,2]
[420071204,1775649048442,-7659.38613565,0.00024855,2]
[420071205,1775649048452,-7028.61009304,0.00024855,2]
[420071206,1775649048461,-1918.42803206,0.00024855,2]
[420071207,1775649048471,-1384.83817395,0.00024855,2]
[420071208,1775649048481,-2757.55237078,0.00024855,2]
[420071209,1775649048490,-825.0,0.0002487,60]
[420071210,1775649048500,-1000.0,0.00024886,7]
[420071211,1775649048509,-12590.41543174,0.000249,2]
[420071212,1775649048519,-601031.232268,0.000249,2]
[420071213,1775649048528,-713.7147,0.000249,2]
[420071214,1775649048537,-1116.0,0.00024918,2]
[420071215,1775649048547,-1122.76379422,0.00025,2]
[420071216,1775649048556,-209.1372582,0.00025,2]
[420071217,1775649048566,-1799.0366628,0.00025,2]
[420071218,1775649048575,-2000.0,0.00025,2]
[420071219,1775649048584,-540.0,0.00025,2]
[420071220,1775649048593,-615.6108964,0.00025,2]
[420071221,1775649048602,-3067.55143082,0.00025,2]
[420071222,1775649048611,-7182.03566753,0.00025,2]
[420071223,1775649048620,-10000.0,0.00025,7]
[420071224,1775649048629,-2217.4326153,0.00025,2]
[420071225,1775649048639,-168.61176705,0.00025,2]
[420071226,1775649048649,-3824.28643757,0.00025,2]
[420071227,1775649048657,-150.0,0.00025,2]
[420071228,1775649048666,-5000.0,0.00025,30]
[420071229,1775649048676,-3000.0,0.00025,5]
[420071230,1775649048685,-3644.0,0.00025,4]
[420071231,1775649048694,-3000.0,0.00025,3]
[420071232,1775649048703,-1000.0,0.00025,5]
[420071233,1775649048713,-1000.0,0.00025,4]
[420071234,1775649048722,-1000.0,0.00025,4]
[420071235,1775649048731,-1000.0,0.00025,4]
[420071236,1775649048741,-2000.34077206,0.00025,2]
[420071237,1775649048750,-150.0,0.00025,2]
[420071238,1775649048760,-150.0,0.00025,2]
[420071239,1775649048769,-150.0,0.00025,2]
[420071240,1775649048778,-150.0,0.00025,2]
[420071241,1775649048788,-150.0,0.00025,2]
[420071242,1775649048797,-150.0,0.00025,2]
[420071243,1775649048807,-150.0,0.00025,2]
[420071244,1775649048817,-150.0,0.00025,2]
[420071245,1775649048827,-150.0,0.00025,2]
[420071246,1775649048836,-150.0,0.00025,2]
[420071247,1775649048845,-150.0,0.00025,2]
[420071248,1775649048855,-150.0,0.00025,2]
[420071249,1775649048865,-150.0,0.00025,2]
[420071250,1775649048874,-164.98,0.00025,2]
[420071251,1775649048883,-160.0,0.00025,30]
[420071252,1775649048893,-550.0,0.00025,2]
[420071253,1775649048903,-160.0,0.00025,30]
[420071254,1775649048914,-160.0,0.00025,3]
[420071255,1775649048924,-167.03,0.00025,2]
[420071256,1775649048934,-716.0,0.00025,2]
[420071257,1775649048945,-5800.0,0.00025092,2]
[420071258,1775649048955,-5800.0,0.00025092,2]
[420071259,1775649048964,-156.431738,0.00025092,2]
[420071260,1775649048973,-151.0,0.00025092,2]
[420071261,1775649048983,-151.0,0.00025092,2]
[420071262,1775649048992,-151.0,0.00025092,2]
[420071263,1775649049002,-151.0,0.00025092,2]
[420071264,1775649049011,-151.0,0.00025092,2]
[420071265,1775649049021,-151.0,0.00025092,2]
[420071266,1775649049030,-221.927431,0.00025092,2]
[420071267,1775649049041,-151.0,0.00025092,2]
[420071268,1775649049051,-151.0,0.00025092,2]
[420071269,1775649049061,-151.0,0.00025092,2]
[420071270,1775649049070,-151.0,0.00025092,2]
[420071271,1775649049080,-151.0,0.00025092,2]
[420071272,1775649049089,-151.0,0.00025092,2]
[420071273,1775649049099,-238.058874,0.00025092,2]
[420071274,1775649049108,-238.058874,0.00025092,2]
[420071275,1775649049118,-151.0,0.00025092,2]
[420071276,1775649049128,-238.058874,0.00025092,2]
[420071277,1775649049138,-238.058874,0.00025092,2]
[420071278,1775649049147,-151.0,0.00025092,2]
[420071279,1775649049156,-151.0,0.00025092,2]
[420071280,1775649049165,-151.0,0.00025092,2]
[420071281,1775649049174,-151.0,0.00025092,2]
[420071282,1775649049184,-151.0,0.00025092,2]
[420071283,1775649049194,-151.0,0.00025092,2]
[420071284,1775649049203,-151.0,0.00025092,2]
[420071285,1775649049212,-151.0,0.00025092,2]
[420071286,1775649049222,-151.0,0.00025092,2]
[420071287,1775649049231,-151.0,0.00025092,2]
[420071288,1775649049239,-151.0,0.00025092,2]
[420071289,1775649049249,-162.503057,0.00025092,2]
[420071290,1775649049258,-151.0,0.00025092,2]
[420071291,1775649049267,-151.0,0.00025092,2]
[420071292,1775649049276,-151.0,0.00025092,2]
[420071293,1775649049285,-151.0,0.00025092,2]
[420071294,1775649049295,-151.0,0.00025092,2]
[420071295,1775649049304,-151.0,0.00025092,2]
[420071296,1775649049314,-151.0,0.00025092,2]
[420071297,1775649049323,-151.0,0.00025092,2]
[420071298,1775649049333,-151.0,0.00025092,2]
[420071299,1775649049342,-151.0,0.00025092,2]
[420071300,1775649049351,-151.0,0.00025092,2]
[420071301,1775649049360,-151.0,0.00025092,2]
[420071302,1775649049369,-151.430048,0.00025092,2]
[420071303,1775649049378,-151.0,0.00025092,2]
[420071304,1775649049388,-151.0,0.00025092,2]
[420071305,1775649049398,-151.0,0.00025092,2]
[420071306,1775649049407,-184.894495,0.00025092,2]
[420071307,1775649049416,-151.0,0.00025092,2]
[420071308,1775649049425,-151.0,0.00025092,2]
[420071309,1775649049435,-151.0,0.00025092,2]
[420071310,1775649049444,-151.0,0.00025092,2]
[420071311,1775649049454,-151.0,0.00025092,2]
[420071312,1775649049463,-151.0,0.00025092,2]
[420071313,1775649049473,-151.0,0.00025092,2]
[420071314,1775649049482,-151.0,0.00025092,2]
[420071315,1775649049492,-151.0,0.00025092,2]
[420071316,1775649049501,-162.4957,0.00025092,2]
[420071317,1775649049510,-151.0,0.00025092,2]
[420071318,1775649049519,-162.4957,0.00025092,2]
[420071319,1775649049528,-162.4957,0.00025092,2]
[420071320,1775649049538,-151.0,0.00025092,2]
[420071321,1775649049548,-162.4957,0.00025092,2]
[420071322,1775649049558,-151.0,0.00025092,2]
[420071323,1775649049568,-159.471452,0.00025092,2]
[420071324,1775649049577,-159.471452,0.00025092,2]
[420071325,1775649049586,-159.471452,0.00025092,2]
[420071326,1775649049595,-159.471452,0.00025092,2]
[420071327,1775649049604,-151.0,0.00025092,2]
[420071328,1775649049614,-151.0,0.00025092,2]
[420071329,1775649049623,-151.0,0.00025092,2]
[420071330,1775649049632,-151.0,0.00025092,2]
[420071331,1775649049642,-151.0,0.00025092,2]
[420071332,1775649049650,-151.0,0.00025092,2]
[420071333,1775649049660,-335.024462,0.00025092,2]
[420071334,1775649049669,-151.0,0.00025092,2]
[420071335,1775649049679,-335.024462,0.00025092,2]
[420071336,1775649049688,-151.0,0.00025092,2]
[420071337,1775649049697,-229.849416,0.00025092,2]
[420071338,1775649049707,-335.024462,0.00025092,2]
[420071339,1775649049717,-151.0,0.00025092,2]
[420071340,1775649049727,-151.0,0.00025092,2]
[420071341,1775649049737,-229.849416,0.00025092,2]
[420071342,1775649049746,-335.024462,0.00025092,2]
[420071343,1775649049756,-151.0,0.00025092,2]
[420071344,1775649049766,-151.0,0.00025092,2]
[420071345,1775649049775,-151.0,0.00025092,2]
[420071346,1775649049784,-151.0,0.00025092,2]
[420071347,1775649049794,-187.149739,0.00025092,2]
[420071348,1775649049804,-151.0,0.00025092,2]
[420071349,1775649049814,-187.149739,0.00025092,2]
[420071350,1775649049823,-151.0,0.00025092,2]
[420071351,1775649049832,-229.849416,0.00025092,2]
[420071352,1775649049842,-187.149739,0.00025092,2]
[420071353,1775649049852,-151.0,0.00025092,2]
[420071354,1775649049862,-229.849416,0.00025092,2]
[420071355,1775649049871,-187.149739,0.00025092,2]
[420071356,1775649049881,-459.939466,0.00025092,2]
[420071357,1775649049891,-459.939466,0.00025092,2]
[420071358,1775649049900,-459.939466,0.00025092,2]
[420071359,1775649049909,-459.939466,0.00025092,2]
[420071360,1775649049918,-151.0,0.00025092,2]
[420071361,1775649049927,-151.0,0.00025092,2]
[420071362,1775649049937,-285.69162,0.00025092,2]
[420071363,1775649049946,-151.0,0.00025092,2]
[420071364,1775649049955,-151.0,0.00025092,2]
[420071365,1775649049964,-285.69162,0.00025092,2]
[420071366,1775649049973,-228.680597,0.00025092,2]
[420071367,1775649049983,-151.0,0.00025092,2]
[420071368,1775649049993,-285.69162,0.00025092,2]
[420071369,1775649050002,-151.0,0.00025092,2]
[420071370,1775649050011,-285.69162,0.00025092,2]
[420071371,1775649050020,-151.0,0.00025092,2]
[420071372,1775649050030,-553.257642,0.00025092,2]
[420071373,1775649050039,-151.0,0.00025092,2]
[420071374,1775649050048,-553.257642,0.00025092,2]
[420071375,1775649050058,-1635.97415,0.00025092,2]
[420071376,1775649050067,-213.120018,0.00025092,2]
[420071377,1775649050076,-553.257642,0.00025092,2]
[420071378,1775649050085,-1635.97415,0.00025092,2]
[420071379,1775649050095,-163.489759,0.00025092,2]
[420071380,1775649050104,-553.257642,0.00025092,2]
[420071381,1775649050113,-151.0,0.00025092,2]
[420071382,1775649050122,-151.0,0.00025092,2]
[420071383,1775649050131,-1635.97415,0.00025092,2]
[420071384,1775649050141,-163.489759,0.00025092,2]
[420071385,1775649050150,-151.0,0.00025092,2]
[420071386,1775649050160,-1635.97415,0.00025092,2]
[420071387,1775649050170,-215.000924,0.00025092,2]
[420071388,1775649050179,-151.0,0.00025092,2]
[420071389,1775649050189,-163.489759,0.00025092,2]
[420071390,1775649050199,-151.0,0.00025092,2]
[420071391,1775649050208,-255.890544,0.00025092,2]
[420071392,1775649050218,-151.0,0.00025092,2]
[420071393,1775649050228,-215.000924,0.00025092,2]
[420071394,1775649050238,-151.0,0.00025092,2]
[420071395,1775649050247,-174.303145,0.00025092,2]
[420071396,1775649050256,-163.489759,0.00025092,2]
[420071397,1775649050266,-151.0,0.00025092,2]
[420071398,1775649050276,-213.120018,0.00025092,2]
[420071399,1775649050285,-151.0,0.00025092,2]
[420071400,1775649050295,-151.0,0.00025092,2]
[420071401,1775649050304,-215.000924,0.00025092,2]
[420071402,1775649050314,-174.303145,0.00025092,2]
[420071403,1775649050323,-213.120018,0.00025092,2]
[420071404,1775649050333,-151.0,0.00025092,2]
[420071405,1775649050342,-151.0,0.00025092,2]
[420071406,1775649050352,-215.000924,0.00025092,2]
[420071407,1775649050362,-151.0,0.00025092,15]
[420071408,1775649050371,-174.303145,0.00025092,2]
[420071409,1775649050381,-151.0,0.00025092,15]
[420071410,1775649050391,-432.068186,0.00025092,2]
[420071411,1775649050611,-151.0,0.00025092,15]
[420071412,1775649050760,-213.120018,0.00025092,2]
[420071413,1775649050771,-151.0,0.00025092,15]
[420071414,1775649050781,-151.0,0.00025092,15]
[420071415,1775649050791,-151.0,0.00025092,2]
[420071416,1775649050801,-156.921063,0.00025092,2]
[420071417,1775649050811,-151.0,0.00025092,15]
[420071418,1775649050821,-174.303145,0.00025092,2]
[420071419,1775649050831,-151.0,0.00025092,15]
[420071420,1775649050841,-151.0,0.00025092,15]
[420071421,1775649050851,-151.0,0.00025092,2]
[420071422,1775649050861,-151.0,0.00025092,15]
[420071423,1775649050871,-151.0,0.00025092,15]
[420071424,1775649050881,-151.0,0.00025092,15]
[420071425,1775649050890,-151.0,0.00025092,2]
[420071426,1775649050900,-151.0,0.00025092,15]
[420071427,1775649050910,-151.0,0.00025092,15]
[420071428,1775649050920,-162.040424,0.00025092,2]
[420071429,1775649050930,-151.0,0.00025092,15]
[420071430,1775649050939,-151.0,0.00025092,2]
[420071431,1775649050949,-151.0,0.00025092,15]
[420071432,1775649050959,-151.0,0.00025092,15]
[420071433,1775649050969,-151.0,0.00025092,2]
[420071434,1775649050979,-151.0,0.00025092,15]
[420071435,1775649050989,-162.040424,0.00025092,2]
[420071436,1775649051007,-151.0,0.00025092,15]
[420071437,1775649051022,-294.560932,0.00025092,15]
[420071438,1775649051033,-151.0,0.00025092,2]
[420071439,1775649051044,-162.040424,0.00025092,2]
[420071440,1775649051056,-432.068186,0.00025092,2]
[420071441,1775649051067,-162.040424,0.00025092,2]
[420071442,1775649051078,-432.068186,0.00025092,2]
[420071443,1775649051090,-432.068186,0.00025092,2]
[420071444,1775649051101,-237.773892,0.00025092,2]
[420071445,1775649051111,-237.773892,0.00025092,2]
[420071446,1775649051123,-175.184416,0.00025092,2]
[420071447,1775649051134,-175.184416,0.00025092,2]
[420071448,1775649051145,-175.184416,0.00025092,2]
[420071449,1775649051156,-752.915677,0.00025092,2]
[420071450,1775649051166,-752.915677,0.00025092,2]
[420071451,1775649051177,-151.0,0.00025092,2]
[420071452,1775649051188,-752.915677,0.00025092,2]
[420071453,1775649051199,-151.0,0.00025092,2]
[420071454,1775649051209,-237.773892,0.00025092,2]
[420071455,1775649051220,-752.915677,0.00025092,2]
[420071456,1775649051231,-175.184416,0.00025092,2]
[420071457,1775649051241,-151.0,0.00025092,2]
[420071458,1775649051251,-237.773892,0.00025092,2]
[420071459,1775649051262,-151.0,0.00025092,2]
[420071460,1775649051273,-151.0,0.00025092,2]
[420071461,1775649051284,-151.0,0.00025092,2]
[420071462,1775649051293,-802.273208,0.00025092,2]
[420071463,1775649051304,-151.0,0.00025092,2]
[420071464,1775649051314,-151.0,0.00025092,2]
[420071465,1775649051324,-802.273208,0.00025092,2]
[420071466,1775649051335,-155.995064,0.00025092,2]
[420071467,1775649051346,-287.257489,0.00025092,2]
[420071468,1775649051356,-714.234892,0.00025092,2]
[420071469,1775649051367,-151.0,0.00025092,2]
[420071470,1775649051378,-287.257489,0.00025092,2]
[420071471,1775649051388,-802.273208,0.00025092,2]
[420071472,1775649051399,-714.234892,0.00025092,2]
[420071473,1775649051410,-151.0,0.00025092,2]
[420071474,1775649051421,-287.257489,0.00025092,2]
[420071475,1775649051431,-802.273208,0.00025092,2]
[420071476,1775649051442,-714.234892,0.00025092,2]
[420071477,1775649051453,-7327.927898,0.00025092,2]
[420071478,1775649051465,-1100.207416,0.00025092,2]
[420071479,1775649051475,-482.220115,0.00025092,2]
[420071480,1775649051486,-151.0,0.00025092,2]
[420071481,1775649051496,-287.257489,0.00025092,2]
[420071482,1775649051512,-7327.927898,0.00025092,2]
[420071483,1775649051525,-714.234892,0.00025092,2]
[420071484,1775649051536,-482.220115,0.00025092,2]
[420071485,1775649051547,-1100.207416,0.00025092,2]
[420071486,1775649051558,-151.0,0.00025092,2]
[420071487,1775649051569,-151.0,0.00025092,2]
[420071488,1775649051580,-7327.927898,0.00025092,2]
[420071489,1775649051591,-173.387355,0.00025092,2]
[420071490,1775649051602,-1100.207416,0.00025092,2]
[420071491,1775649051613,-482.220115,0.00025092,2]
[420071492,1775649051624,-7327.927898,0.00025092,2]
[420071493,1775649051635,-151.0,0.00025092,2]
[420071494,1775649051646,-173.387355,0.00025092,2]
[420071495,1775649051657,-151.0,0.00025092,2]
[420071496,1775649051667,-1100.207416,0.00025092,2]
[420071497,1775649051678,-482.220115,0.00025092,2]
[420071498,1775649051689,-2043.647942,0.00025092,2]
[420071499,1775649051699,-151.0,0.00025092,2]
[420071500,1775649051710,-173.387355,0.00025092,2]
[420071501,1775649051721,-151.0,0.00025092,2]
[420071502,1775649051731,-2043.647942,0.00025092,2]
[420071503,1775649051743,-151.0,0.00025092,2]
[420071504,1775649051754,-151.0,0.00025092,2]
[420071505,1775649051764,-173.387355,0.00025092,2]
[420071506,1775649051775,-1026.074546,0.00025092,2]
[420071507,1775649051786,-2043.647942,0.00025092,2]
[420071508,1775649051797,-151.0,0.00025092,2]
[420071509,1775649051808,-151.0,0.00025092,2]
[420071510,1775649051820,-254.210321,0.00025092,2]
[420071511,1775649051831,-1026.074546,0.00025092,2]
[420071512,1775649051842,-2043.647942,0.00025092,2]
[420071513,1775649051853,-163.758899,0.00025092,2]
[420071514,1775649051864,-254.210321,0.00025092,2]
[420071515,1775649051876,-1026.074546,0.00025092,2]
[420071516,1775649051886,-378.257063,0.00025092,2]
[420071517,1775649051897,-254.210321,0.00025092,2]
[420071518,1775649051909,-1026.074546,0.00025092,2]
[420071519,1775649051920,-151.0,0.00025092,2]
[420071520,1775649051931,-254.210321,0.00025092,2]
[420071521,1775649051942,-378.257063,0.00025092,2]
[420071522,1775649051953,-151.0,0.00025092,2]
[420071523,1775649051964,-378.257063,0.00025092,2]
[420071524,1775649051974,-378.257063,0.00025092,2]
[420071525,1775649051986,-151.0,0.00025092,2]
[420071526,1775649052003,-208.70338,0.00025092,2]
[420071527,1775649052014,-462.253159,0.00025092,2]
[420071528,1775649052026,-462.253159,0.00025092,2]
[420071529,1775649052037,-151.0,0.00025092,2]
[420071530,1775649052049,-188.419397,0.00025092,2]
[420071531,1775649052061,-658.918959,0.00025092,2]
[420071532,1775649052073,-151.0,0.00025092,2]
[420071533,1775649052086,-188.419397,0.00025092,2]
[420071534,1775649052097,-658.918959,0.00025092,2]
[420071535,1775649052108,-151.0,0.00025092,2]
[420071536,1775649052119,-462.253159,0.00025092,2]
[420071537,1775649052131,-658.918959,0.00025092,2]
[420071538,1775649052142,-188.419397,0.00025092,2]
[420071539,1775649052153,-272.133809,0.00025092,2]
[420071540,1775649052164,-462.253159,0.00025092,2]
[420071541,1775649052175,-151.0,0.00025092,2]
[420071542,1775649052187,-658.918959,0.00025092,2]
[420071543,1775649052198,-188.419397,0.00025092,2]
[420071544,1775649052209,-151.0,0.00025092,2]
[420071545,1775649052220,-3158.761635,0.00025092,2]
[420071546,1775649052230,-151.0,0.00025092,2]
[420071547,1775649052241,-369.249287,0.00025092,2]
[420071548,1775649052252,-151.0,0.00025092,2]
[420071549,1775649052263,-846.16281,0.00025092,2]
[420071550,1775649052275,-631.145346,0.00025092,2]
[420071551,1775649052286,-3158.761635,0.00025092,2]
[420071552,1775649052297,-151.0,0.00025092,2]
[420071553,1775649052308,-158.811697,0.00025092,2]
[420071554,1775649052319,-846.16281,0.00025092,2]
[420071555,1775649052330,-631.145346,0.00025092,2]
[420071556,1775649052340,-151.0,0.00025092,2]
[420071557,1775649052351,-3158.761635,0.00025092,2]
[420071558,1775649052361,-151.0,0.00025092,2]
[420071559,1775649052372,-846.16281,0.00025092,2]
[420071560,1775649052383,-151.0,0.00025092,2]
[420071561,1775649052394,-151.0,0.00025092,2]
[420071562,1775649052404,-631.145346,0.00025092,2]
[420071563,1775649052414,-3158.761635,0.00025092,2]
[420071564,1775649052425,-846.16281,0.00025092,2]
[420071565,1775649052437,-151.0,0.00025092,2]
[420071566,1775649052450,-151.0,0.00025092,2]
[420071567,1775649052461,-369.249287,0.00025092,2]
[420071568,1775649052471,-151.0,0.00025092,2]
[420071569,1775649052486,-631.145346,0.00025092,2]
[420071570,1775649052496,-151.0,0.00025092,2]
[420071571,1775649052508,-151.0,0.00025092,2]
[420071572,1775649052519,-369.249287,0.00025092,2]
[420071573,1775649052529,-151.0,0.00025092,2]
[420071574,1775649052540,-1977.501114,0.00025092,2]
[420071575,1775649052550,-201.410641,0.00025092,2]
[420071576,1775649052561,-151.0,0.00025092,2]
[420071577,1775649052571,-2027.179466,0.00025092,2]
[420071578,1775649052582,-151.0,0.00025092,2]
[420071579,1775649052594,-369.249287,0.00025092,2]
[420071580,1775649052604,-1977.501114,0.00025092,2]